[Event "Late-Titled-Tuesday-Blitz-September-19-2023"]
[Site "Chess.com"]
[Date "2023.09.19"]
[Round "7"]
[White "Hrant_ChessMood"]
[Black "Lennis93"]
[Result "1-0"]
[WhiteElo "2914"]
[BlackElo "2738"]
[TimeControl "180+1"]
[EndTime "15:13:41 PDT"]
[Termination "Hrant_ChessMood won on time"]

1. c4 {[%clk 0:03:00.9]} 1... e5 {[%clk 0:02:59]} 2. g3 {[%clk 0:03:00.3]} 2...
Nf6 {[%clk 0:02:59]} 3. Bg2 {[%clk 0:03:00.3]} 3... c6 {[%clk 0:02:59.4]} 4. Nf3
{[%clk 0:02:58.1]} 4... e4 {[%clk 0:02:59]} 5. Nd4 {[%clk 0:02:58.7]} 5... d5
{[%clk 0:02:58.9]} 6. cxd5 {[%clk 0:02:59.6]} 6... Qxd5 {[%clk 0:02:55.4]} 7. e3
{[%clk 0:02:59.7]} 7... Qe5 {[%clk 0:02:41.1]} 8. O-O {[%clk 0:02:58.8]} 8...
Be7 {[%clk 0:02:30]} 9. d3 {[%clk 0:02:58]} 9... exd3 {[%clk 0:02:15]} 10. Qxd3
{[%clk 0:02:58.9]} 10... O-O {[%clk 0:02:14.9]} 11. Nd2 {[%clk 0:02:59]} 11...
Rd8 {[%clk 0:02:13.3]} 12. Nc4 {[%clk 0:02:58.6]} 12... Qc7 {[%clk 0:02:12.6]}
13. Qc2 {[%clk 0:02:55.7]} 13... Na6 {[%clk 0:02:11.4]} 14. a3 {[%clk
0:02:50.6]} 14... Bc5 {[%clk 0:02:04.5]} 15. b4 {[%clk 0:02:46.6]} 15... Bxd4
{[%clk 0:02:04.5]} 16. exd4 {[%clk 0:02:47.5]} 16... Bg4 {[%clk 0:01:45.9]} 17.
Bf4 {[%clk 0:02:45.1]} 17... Qd7 {[%clk 0:00:53.1]} 18. Ne5 {[%clk 0:02:43.6]}
18... Qxd4 {[%clk 0:00:53]} 19. b5 {[%clk 0:02:32.8]} 19... Qc5 {[%clk
0:00:34.6]} 20. Qxc5 {[%clk 0:02:26.6]} 20... Nxc5 {[%clk 0:00:35.5]} 21. bxc6
{[%clk 0:02:26.6]} 21... bxc6 {[%clk 0:00:35.9]} 22. Nxc6 {[%clk 0:02:24.8]}
22... Nd3 {[%clk 0:00:31.6]} 23. Nxd8 {[%clk 0:02:20.3]} 23... Rxd8 {[%clk
0:00:31.5]} 24. Be3 {[%clk 0:02:19.6]} 24... Be2 {[%clk 0:00:29]} 25. Rfb1
{[%clk 0:02:18.9]} 25... a5 {[%clk 0:00:28.8]} 26. Bb6 {[%clk 0:02:18]} 26...
Re8 {[%clk 0:00:27.7]} 27. Bxa5 {[%clk 0:02:17.6]} 27... Ng4 {[%clk 0:00:27.9]}
28. Be1 {[%clk 0:02:15.8]} 28... Nde5 {[%clk 0:00:21.4]} 29. h3 {[%clk
0:02:12.8]} 29... Nf6 {[%clk 0:00:19.9]} 30. Bc3 {[%clk 0:02:11]} 30... Nf3+
{[%clk 0:00:19.6]} 31. Bxf3 {[%clk 0:02:10.9]} 31... Bxf3 {[%clk 0:00:20.5]} 32.
Bxf6 {[%clk 0:02:10.6]} 32... gxf6 {[%clk 0:00:21.4]} 33. a4 {[%clk 0:02:11.3]}
33... Ra8 {[%clk 0:00:16.2]} 34. a5 {[%clk 0:02:11]} 34... Ra7 {[%clk
0:00:15.2]} 35. Rb4 {[%clk 0:02:07.6]} 35... Kg7 {[%clk 0:00:14.1]} 36. a6
{[%clk 0:02:06]} 36... h5 {[%clk 0:00:13.6]} 37. g4 {[%clk 0:02:02.6]} 37... f5
{[%clk 0:00:08.9]} 38. gxh5 {[%clk 0:02:00.8]} 38... Kh6 {[%clk 0:00:07]} 39.
Kh2 {[%clk 0:01:59.2]} 39... Kxh5 {[%clk 0:00:05.5]} 40. Kg3 {[%clk 0:01:58.7]}
40... Be4 {[%clk 0:00:04]} 41. Kf4 {[%clk 0:01:58]} 41... f6 {[%clk 0:00:03.1]}
42. f3 {[%clk 0:01:56.3]} 42... Ba8 {[%clk 0:00:02.7]} 43. Rb8 {[%clk
0:01:55.8]} 1-0

[Event "Late-Titled-Tuesday-Blitz-September-19-2023"]
[Site "Chess.com"]
[Date "2023.09.19"]
[Round "7"]
[White "KejJaj"]
[Black "Miguelitro69"]
[Result "0-1"]
[WhiteElo "2200"]
[BlackElo "2280"]
[TimeControl "180+1"]
[EndTime "15:13:41 PDT"]
[Termination "Miguelitro69 won by resignation"]

1. d4 {[%clk 0:03:00.9]} 1... Nf6 {[%clk 0:02:58.6]} 2. Bf4 {[%clk 0:03:01.2]}
2... d6 {[%clk 0:02:58.5]} 3. Nc3 {[%clk 0:02:59.9]} 3... g6 {[%clk 0:02:58.6]}
4. e4 {[%clk 0:03:00.4]} 4... Bg7 {[%clk 0:02:58.3]} 5. Qd2 {[%clk 0:03:00.8]}
5... h5 {[%clk 0:02:54.2]} 6. O-O-O {[%clk 0:02:59.3]} 6... c6 {[%clk
0:02:41.7]} 7. f3 {[%clk 0:02:54.6]} 7... Nbd7 {[%clk 0:02:41.4]} 8. e5 {[%clk
0:02:51.1]} 8... Nd5 {[%clk 0:02:36.7]} 9. Nxd5 {[%clk 0:02:45.6]} 9... cxd5
{[%clk 0:02:28.1]} 10. exd6 {[%clk 0:02:45.1]} 10... O-O {[%clk 0:02:17.5]} 11.
dxe7 {[%clk 0:02:38.5]} 11... Qxe7 {[%clk 0:02:16.1]} 12. Ne2 {[%clk 0:02:36.1]}
12... Nb6 {[%clk 0:02:12.9]} 13. Nc3 {[%clk 0:02:36]} 13... Be6 {[%clk
0:02:07.3]} 14. Be2 {[%clk 0:02:27.5]} 14... Rfc8 {[%clk 0:02:06.7]} 15. g4
{[%clk 0:02:24.7]} 15... hxg4 {[%clk 0:02:03.6]} 16. fxg4 {[%clk 0:02:24.8]}
16... Nc4 {[%clk 0:01:55.6]} 17. Bxc4 {[%clk 0:02:24.4]} 17... Rxc4 {[%clk
0:01:55.7]} 18. Qe3 {[%clk 0:02:15.8]} 18... Rac8 {[%clk 0:01:51.1]} 19. Rd3
{[%clk 0:02:08.3]} 19... Qb4 {[%clk 0:01:42.6]} 20. h3 {[%clk 0:01:40.6]} 20...
Rxd4 {[%clk 0:01:36.3]} 21. Be5 {[%clk 0:01:20.3]} 21... Rxd3 {[%clk 0:01:31.3]}
22. cxd3 {[%clk 0:01:17.3]} 22... d4 {[%clk 0:01:17.8]} 23. a3 {[%clk
0:01:13.9]} 23... Qc5 {[%clk 0:01:12.2]} 24. Bxd4 {[%clk 0:00:37.3]} 24... Bxd4
{[%clk 0:01:08.7]} 25. Qd2 {[%clk 0:00:34.3]} 25... Bxc3 {[%clk 0:01:07.5]} 26.
bxc3 {[%clk 0:00:35.2]} 26... Qxc3+ {[%clk 0:01:06.5]} 27. Qxc3 {[%clk
0:00:35.1]} 27... Rxc3+ {[%clk 0:01:06.9]} 28. Kd2 {[%clk 0:00:29.1]} 28... Rxa3
{[%clk 0:01:06.6]} 29. g5 {[%clk 0:00:25.7]} 29... Bf5 {[%clk 0:01:01.9]} 30. d4
{[%clk 0:00:25.2]} 30... Rd3+ {[%clk 0:01:01.4]} 0-1

[Event "Late-Titled-Tuesday-Blitz-September-19-2023"]
[Site "Chess.com"]
[Date "2023.09.19"]
[Round "7"]
[White "Nekoo04"]
[Black "rdarruda"]
[Result "0-1"]
[WhiteElo "2343"]
[BlackElo "2501"]
[TimeControl "180+1"]
[EndTime "15:13:43 PDT"]
[Termination "rdarruda won on time"]

1. d4 {[%clk 0:02:44.2]} 1... Nf6 {[%clk 0:02:59.3]} 2. c4 {[%clk 0:02:44]} 2...
e5 {[%clk 0:02:59.4]} 3. dxe5 {[%clk 0:02:44.9]} 3... Ne4 {[%clk 0:02:59.1]} 4.
a3 {[%clk 0:02:43.4]} 4... Nc6 {[%clk 0:02:57.7]} 5. Nf3 {[%clk 0:02:35.2]} 5...
d6 {[%clk 0:02:56.9]} 6. Qd5 {[%clk 0:02:19.3]} 6... Nc5 {[%clk 0:02:54.4]} 7.
Ng5 {[%clk 0:01:51.7]} 7... Nxe5 {[%clk 0:02:47.2]} 8. f4 {[%clk 0:01:32.2]}
8... c6 {[%clk 0:02:36]} 9. Qd1 {[%clk 0:01:31.3]} 9... Ng6 {[%clk 0:02:27.1]}
10. Nc3 {[%clk 0:01:24]} 10... Be7 {[%clk 0:02:15.5]} 11. Nf3 {[%clk 0:01:20.6]}
11... O-O {[%clk 0:02:11.7]} 12. b4 {[%clk 0:00:52.1]} 12... Bf6 {[%clk
0:02:09.7]} 13. Nd4 {[%clk 0:00:43.7]} 13... Ne6 {[%clk 0:02:01.3]} 14. e3
{[%clk 0:00:35.8]} 14... Ngxf4 {[%clk 0:01:49.5]} 15. exf4 {[%clk 0:00:23.6]}
15... Nxd4 {[%clk 0:01:49.3]} 16. Bd2 {[%clk 0:00:18.9]} 16... Re8+ {[%clk
0:01:48]} 17. Kf2 {[%clk 0:00:17.6]} 17... Bf5 {[%clk 0:01:42.8]} 18. g4 {[%clk
0:00:11.5]} 18... Bh4+ {[%clk 0:01:36]} 19. Kg2 {[%clk 0:00:10.5]} 19... Bc2
{[%clk 0:01:35.9]} 20. Qc1 {[%clk 0:00:08.8]} 20... Qe7 {[%clk 0:01:29.7]} 21.
Qb2 {[%clk 0:00:02.4]} 21... Be4+ {[%clk 0:01:28.4]} 22. Nxe4 {[%clk 0:00:01.5]}
22... Qxe4+ {[%clk 0:01:29.3]} 23. Kh3 {[%clk 0:00:01]} 23... Bf6 {[%clk
0:01:10.1]} 0-1

[Event "Late-Titled-Tuesday-Blitz-September-19-2023"]
[Site "Chess.com"]
[Date "2023.09.19"]
[Round "7"]
[White "GeorgiosSouleidis"]
[Black "Hooded_Old_Man"]
[Result "1-0"]
[WhiteElo "2521"]
[BlackElo "2278"]
[TimeControl "180+1"]
[EndTime "15:13:46 PDT"]
[Termination "GeorgiosSouleidis won by resignation"]

1. e4 {[%clk 0:03:00.9]} 1... c5 {[%clk 0:02:59.7]} 2. Be2 {[%clk 0:03:00.4]}
2... d6 {[%clk 0:02:57.8]} 3. d3 {[%clk 0:03:00.7]} 3... Nc6 {[%clk 0:02:57.5]}
4. f4 {[%clk 0:03:00.8]} 4... g6 {[%clk 0:02:57.2]} 5. Nf3 {[%clk 0:03:01.4]}
5... Bg7 {[%clk 0:02:58.1]} 6. O-O {[%clk 0:03:02]} 6... Bg4 {[%clk 0:02:58.2]}
7. c3 {[%clk 0:03:02.2]} 7... Nf6 {[%clk 0:02:58.4]} 8. Be3 {[%clk 0:03:02.1]}
8... O-O {[%clk 0:02:58.1]} 9. h3 {[%clk 0:02:58.8]} 9... Bxf3 {[%clk
0:02:58.1]} 10. Bxf3 {[%clk 0:02:59.7]} 10... Rb8 {[%clk 0:02:58.4]} 11. d4
{[%clk 0:02:55.4]} 11... cxd4 {[%clk 0:02:57.5]} 12. cxd4 {[%clk 0:02:56.3]}
12... d5 {[%clk 0:02:57.3]} 13. e5 {[%clk 0:02:54.9]} 13... Ne4 {[%clk 0:02:57]}
14. Nd2 {[%clk 0:02:49.3]} 14... Nxd2 {[%clk 0:02:46.8]} 15. Qxd2 {[%clk
0:02:49.4]} 15... e6 {[%clk 0:02:39.2]} 16. b4 {[%clk 0:02:46]} 16... Qb6 {[%clk
0:02:35.1]} 17. Rab1 {[%clk 0:02:40.2]} 17... a5 {[%clk 0:02:28.9]} 18. b5
{[%clk 0:02:27.9]} 18... Ne7 {[%clk 0:02:28]} 19. Rfc1 {[%clk 0:02:17.8]} 19...
Rfc8 {[%clk 0:02:27.2]} 20. a4 {[%clk 0:02:12.1]} 20... Nf5 {[%clk 0:02:25.9]}
21. Bf2 {[%clk 0:02:10.2]} 21... Bf8 {[%clk 0:02:23.9]} 22. g4 {[%clk
0:02:08.1]} 22... Bb4 {[%clk 0:02:22.7]} 23. Rxc8+ {[%clk 0:01:32.8]} 23... Rxc8
{[%clk 0:02:21.4]} 24. Rxb4 {[%clk 0:01:33.4]} 24... axb4 {[%clk 0:02:20.5]} 25.
gxf5 {[%clk 0:01:34.1]} 25... gxf5 {[%clk 0:02:18.3]} 26. Qxb4 {[%clk
0:01:32.9]} 26... Rc1+ {[%clk 0:02:15.3]} 27. Kg2 {[%clk 0:01:32.5]} 27... Rc2
{[%clk 0:02:15]} 28. a5 {[%clk 0:01:10.6]} 28... Qd8 {[%clk 0:02:13.4]} 29. Bd1
{[%clk 0:00:48.9]} 29... Ra2 {[%clk 0:02:09.3]} 30. Bb3 {[%clk 0:00:43.3]} 30...
Rb2 {[%clk 0:02:07.4]} 31. Qc3 {[%clk 0:00:42.7]} 31... Re2 {[%clk 0:02:00.4]}
32. Kf3 {[%clk 0:00:41.2]} 32... Re4 {[%clk 0:01:53.6]} 33. Bc2 {[%clk
0:00:36.6]} 33... f6 {[%clk 0:01:32.2]} 34. Bxe4 {[%clk 0:00:35.6]} 34... fxe4+
{[%clk 0:01:31.7]} 35. Kg2 {[%clk 0:00:33.4]} 35... fxe5 {[%clk 0:01:31.1]} 36.
dxe5 {[%clk 0:00:31.6]} 36... Qe8 {[%clk 0:01:21.6]} 37. a6 {[%clk 0:00:30.4]}
37... bxa6 {[%clk 0:01:17.7]} 38. bxa6 {[%clk 0:00:30.2]} 38... Qg6+ {[%clk
0:01:17.6]} 39. Qg3 {[%clk 0:00:29.7]} 1-0

[Event "Late-Titled-Tuesday-Blitz-September-19-2023"]
[Site "Chess.com"]
[Date "2023.09.19"]
[Round "7"]
[White "sergeikim"]
[Black "KaydenTroffChess"]
[Result "1/2-1/2"]
[WhiteElo "2608"]
[BlackElo "2775"]
[TimeControl "180+1"]
[EndTime "15:13:57 PDT"]
[Termination "Game drawn by repetition"]

1. d4 {[%clk 0:03:00.9]} 1... Nf6 {[%clk 0:02:59.9]} 2. c4 {[%clk 0:03:01.1]}
2... g6 {[%clk 0:03:00.2]} 3. Nc3 {[%clk 0:03:01.4]} 3... d5 {[%clk 0:03:00.4]}
4. cxd5 {[%clk 0:03:01.2]} 4... Nxd5 {[%clk 0:03:00.7]} 5. e4 {[%clk 0:03:01.6]}
5... Nxc3 {[%clk 0:03:00.7]} 6. bxc3 {[%clk 0:03:02.5]} 6... Bg7 {[%clk
0:03:01.1]} 7. Bc4 {[%clk 0:03:02.8]} 7... O-O {[%clk 0:02:59]} 8. Ne2 {[%clk
0:03:02.8]} 8... c5 {[%clk 0:02:59.1]} 9. O-O {[%clk 0:03:01.7]} 9... Nc6 {[%clk
0:02:59.2]} 10. Be3 {[%clk 0:03:01.7]} 10... Bd7 {[%clk 0:02:58.2]} 11. Qd2
{[%clk 0:03:01.6]} 11... Qc7 {[%clk 0:02:57.5]} 12. Rac1 {[%clk 0:02:59.2]}
12... Rfd8 {[%clk 0:02:55.7]} 13. Bh6 {[%clk 0:02:59.1]} 13... Bh8 {[%clk
0:02:50.5]} 14. f4 {[%clk 0:02:58]} 14... cxd4 {[%clk 0:02:40.7]} 15. cxd4
{[%clk 0:02:56.5]} 15... Qb6 {[%clk 0:02:39.6]} 16. f5 {[%clk 0:02:12.4]} 16...
Be8 {[%clk 0:02:17.6]} 17. fxg6 {[%clk 0:02:06.4]} 17... hxg6 {[%clk 0:02:15.8]}
18. Qg5 {[%clk 0:01:54.9]} 18... Nxd4 {[%clk 0:02:02.7]} 19. Nxd4 {[%clk
0:01:48.5]} 19... Rxd4 {[%clk 0:01:51.8]} 20. Kh1 {[%clk 0:01:46.7]} 20... Rxc4
{[%clk 0:00:55.7]} 21. Rxc4 {[%clk 0:01:37.6]} 21... Bb5 {[%clk 0:00:51.8]} 22.
Rb1 {[%clk 0:01:35.6]} 22... Bxc4 {[%clk 0:00:51.2]} 23. Rxb6 {[%clk 0:01:34.7]}
23... axb6 {[%clk 0:00:52.1]} 24. Qxe7 {[%clk 0:01:28.2]} 24... Rxa2 {[%clk
0:00:47.7]} 25. h4 {[%clk 0:01:22.5]} 25... Be6 {[%clk 0:00:42.6]} 26. Bf4
{[%clk 0:01:14.8]} 26... Kh7 {[%clk 0:00:37.8]} 27. h5 {[%clk 0:01:12.4]} 27...
gxh5 {[%clk 0:00:35.2]} 28. Qg5 {[%clk 0:01:11.5]} 28... Ra5 {[%clk 0:00:31.8]}
29. e5 {[%clk 0:01:10.1]} 29... Ra4 {[%clk 0:00:26.4]} 30. Qxh5+ {[%clk
0:01:07.4]} 30... Kg8 {[%clk 0:00:26.8]} 31. Qg5+ {[%clk 0:01:05.7]} 31... Bg7
{[%clk 0:00:26.2]} 32. Qd8+ {[%clk 0:01:03.3]} 32... Kh7 {[%clk 0:00:26.4]} 33.
Qh4+ {[%clk 0:01:02.4]} 33... Kg8 {[%clk 0:00:26.3]} 34. Qd8+ {[%clk 0:01:02]}
34... Kh7 {[%clk 0:00:24.2]} 35. Qh4+ {[%clk 0:01:00.8]} 35... Kg8 {[%clk
0:00:23.9]} 36. Qd8+ {[%clk 0:01:00.5]} 1/2-1/2

[Event "Late-Titled-Tuesday-Blitz-September-19-2023"]
[Site "Chess.com"]
[Date "2023.09.19"]
[Round "7"]
[White "Haykoooo0o"]
[Black "fyall777"]
[Result "1-0"]
[WhiteElo "2473"]
[BlackElo "2546"]
[TimeControl "180+1"]
[EndTime "15:13:59 PDT"]
[Termination "Haykoooo0o won on time"]

1. d4 {[%clk 0:02:56]} 1... f5 {[%clk 0:01:46]} 2. Nf3 {[%clk 0:02:55]} 2... Nf6
{[%clk 0:01:46.2]} 3. Bf4 {[%clk 0:02:54.6]} 3... g6 {[%clk 0:01:46.4]} 4. e3
{[%clk 0:02:54.7]} 4... Bg7 {[%clk 0:01:46.7]} 5. h3 {[%clk 0:02:55.3]} 5... d6
{[%clk 0:01:46.9]} 6. Be2 {[%clk 0:02:55.9]} 6... Nc6 {[%clk 0:01:44.7]} 7. c3
{[%clk 0:02:56.4]} 7... O-O {[%clk 0:01:44.4]} 8. O-O {[%clk 0:02:56.7]} 8...
Qe8 {[%clk 0:01:44.1]} 9. Na3 {[%clk 0:02:55.5]} 9... e5 {[%clk 0:01:43.3]} 10.
Bh2 {[%clk 0:02:56.1]} 10... Bd7 {[%clk 0:01:35.1]} 11. Nc4 {[%clk 0:02:54.2]}
11... e4 {[%clk 0:01:32.5]} 12. Nfd2 {[%clk 0:02:54.4]} 12... Nd5 {[%clk
0:01:28.1]} 13. Qc2 {[%clk 0:02:49.5]} 13... b5 {[%clk 0:01:15.5]} 14. Na3
{[%clk 0:02:42.6]} 14... a6 {[%clk 0:01:15.5]} 15. Nab1 {[%clk 0:02:34.9]} 15...
Kh8 {[%clk 0:01:13.1]} 16. a4 {[%clk 0:02:33.7]} 16... b4 {[%clk 0:01:04.4]} 17.
Qb3 {[%clk 0:02:28.9]} 17... Be6 {[%clk 0:00:49.4]} 18. Qc2 {[%clk 0:02:09.9]}
18... Bf7 {[%clk 0:00:37]} 19. a5 {[%clk 0:02:07.5]} 19... g5 {[%clk 0:00:32]}
20. c4 {[%clk 0:01:46.7]} 20... Nde7 {[%clk 0:00:29.3]} 21. c5 {[%clk
0:01:46.8]} 21... Qd7 {[%clk 0:00:26.7]} 22. cxd6 {[%clk 0:01:45.9]} 22... cxd6
{[%clk 0:00:25]} 23. Nc4 {[%clk 0:01:46.4]} 23... Bxc4 {[%clk 0:00:19.9]} 24.
Bxc4 {[%clk 0:01:45.8]} 24... d5 {[%clk 0:00:16.8]} 25. Be2 {[%clk 0:01:45.9]}
25... f4 {[%clk 0:00:17.3]} 26. Bg4 {[%clk 0:01:45.1]} 26... Qb7 {[%clk
0:00:14.3]} 27. Nd2 {[%clk 0:01:42.9]} 27... Ng6 {[%clk 0:00:13.7]} 28. Rfc1
{[%clk 0:01:38.8]} 28... Nce7 {[%clk 0:00:13.4]} 29. Qc7 {[%clk 0:01:33.2]}
29... Qb5 {[%clk 0:00:12.8]} 30. Nb3 {[%clk 0:01:21.7]} 30... Qd3 {[%clk
0:00:09.4]} 31. Nc5 {[%clk 0:01:19.7]} 31... Qd2 {[%clk 0:00:04.7]} 32. Rd1
{[%clk 0:01:15.3]} 32... Qxb2 {[%clk 0:00:03.4]} 33. Ne6 {[%clk 0:01:15.7]} 1-0

[Event "Late-Titled-Tuesday-Blitz-September-19-2023"]
[Site "Chess.com"]
[Date "2023.09.19"]
[Round "7"]
[White "Beca95"]
[Black "dawid498"]
[Result "1-0"]
[WhiteElo "2863"]
[BlackElo "2664"]
[TimeControl "180+1"]
[EndTime "15:14:05 PDT"]
[Termination "Beca95 won by resignation"]

1. d4 {[%clk 0:03:00.9]} 1... Nf6 {[%clk 0:02:59.3]} 2. Bg5 {[%clk 0:03:01.4]}
2... e6 {[%clk 0:02:56.7]} 3. e4 {[%clk 0:03:00.6]} 3... h6 {[%clk 0:02:56]} 4.
Bxf6 {[%clk 0:03:00.7]} 4... Qxf6 {[%clk 0:02:56.9]} 5. c3 {[%clk 0:03:00.4]}
5... d5 {[%clk 0:02:56.6]} 6. Nd2 {[%clk 0:02:59]} 6... Qd8 {[%clk 0:02:45.9]}
7. Ngf3 {[%clk 0:02:52.6]} 7... Be7 {[%clk 0:02:15.6]} 8. Qc2 {[%clk 0:02:42]}
8... dxe4 {[%clk 0:02:12]} 9. Nxe4 {[%clk 0:02:41]} 9... Nd7 {[%clk 0:02:12.6]}
10. O-O-O {[%clk 0:02:39.8]} 10... Nf6 {[%clk 0:02:09.4]} 11. Bd3 {[%clk
0:02:39.1]} 11... O-O {[%clk 0:02:07.3]} 12. Nxf6+ {[%clk 0:02:38.2]} 12... Bxf6
{[%clk 0:02:08.2]} 13. g4 {[%clk 0:02:37.9]} 13... Qd5 {[%clk 0:02:03.1]} 14.
Be4 {[%clk 0:02:37.2]} 14... Qa5 {[%clk 0:02:03.5]} 15. h4 {[%clk 0:02:36.9]}
15... Qxa2 {[%clk 0:01:58.1]} 16. g5 {[%clk 0:02:36]} 16... Be7 {[%clk 0:01:37]}
17. gxh6 {[%clk 0:02:35.3]} 17... f5 {[%clk 0:01:13.8]} 18. hxg7 {[%clk
0:02:34.2]} 18... Rf7 {[%clk 0:00:57.4]} 19. Bd3 {[%clk 0:02:33.7]} 19... Bd7
{[%clk 0:00:51.2]} 20. Rdg1 {[%clk 0:02:30.9]} 20... Bc6 {[%clk 0:00:40.8]} 21.
Rh3 {[%clk 0:01:16.3]} 21... Bxf3 {[%clk 0:00:22.1]} 22. Rxf3 {[%clk 0:01:17.2]}
22... Qa1+ {[%clk 0:00:22.5]} 23. Qb1 {[%clk 0:01:17]} 23... Qxb1+ {[%clk
0:00:23.1]} 24. Kxb1 {[%clk 0:01:17.5]} 24... Rxg7 {[%clk 0:00:24]} 25. Re1
{[%clk 0:01:17.1]} 25... Bxh4 {[%clk 0:00:18.9]} 26. Rxe6 {[%clk 0:01:15.8]}
26... Re7 {[%clk 0:00:14.1]} 27. Rh6 {[%clk 0:01:12.2]} 27... Re1+ {[%clk
0:00:05.2]} 28. Kc2 {[%clk 0:01:11]} 28... Be7 {[%clk 0:00:03.3]} 29. Rg3+
{[%clk 0:01:08.6]} 29... Kf7 {[%clk 0:00:03.2]} 30. Bc4+ {[%clk 0:01:08.7]}
30... Ke8 {[%clk 0:00:03.3]} 31. Rg8+ {[%clk 0:01:07.3]} 31... Bf8 {[%clk
0:00:03.3]} 32. Rxf8+ {[%clk 0:01:07.8]} 32... Kxf8 {[%clk 0:00:03.8]} 33. Rh8+
{[%clk 0:01:08.1]} 33... Ke7 {[%clk 0:00:04.2]} 34. Rxa8 {[%clk 0:01:07.8]} 1-0

[Event "Late-Titled-Tuesday-Blitz-September-19-2023"]
[Site "Chess.com"]
[Date "2023.09.19"]
[Round "7"]
[White "Sjakkerntobi"]
[Black "farzadbfd"]
[Result "0-1"]
[WhiteElo "2514"]
[BlackElo "2695"]
[TimeControl "180+1"]
[EndTime "15:14:05 PDT"]
[Termination "farzadbfd won by resignation"]

1. e4 {[%clk 0:03:00.9]} 1... e5 {[%clk 0:03:00.2]} 2. Nf3 {[%clk 0:03:01]} 2...
Nc6 {[%clk 0:03:00.5]} 3. Bc4 {[%clk 0:03:01.2]} 3... Bc5 {[%clk 0:03:00.3]} 4.
c3 {[%clk 0:03:01.4]} 4... Nf6 {[%clk 0:03:00.9]} 5. d3 {[%clk 0:03:02.1]} 5...
d6 {[%clk 0:03:00.9]} 6. O-O {[%clk 0:03:02.1]} 6... h6 {[%clk 0:03:00.6]} 7.
Re1 {[%clk 0:03:01]} 7... O-O {[%clk 0:03:00.2]} 8. h3 {[%clk 0:02:59.8]} 8...
a6 {[%clk 0:03:00.6]} 9. a4 {[%clk 0:02:59.7]} 9... Be6 {[%clk 0:02:59.8]} 10.
Bxe6 {[%clk 0:02:58]} 10... fxe6 {[%clk 0:03:00.1]} 11. Nbd2 {[%clk 0:02:56.3]}
11... Qe8 {[%clk 0:02:58]} 12. Nf1 {[%clk 0:02:49.7]} 12... Nh5 {[%clk
0:02:58.2]} 13. g3 {[%clk 0:02:45.4]} 13... Qg6 {[%clk 0:02:50.8]} 14. Be3
{[%clk 0:02:42.6]} 14... Rad8 {[%clk 0:02:25.8]} 15. b4 {[%clk 0:02:37.3]} 15...
Bxe3 {[%clk 0:02:19]} 16. Rxe3 {[%clk 0:02:38.2]} 16... Rf6 {[%clk 0:02:12.1]}
17. Kg2 {[%clk 0:02:37.6]} 17... Rdf8 {[%clk 0:02:10.9]} 18. Ra2 {[%clk
0:02:34.3]} 18... Qf7 {[%clk 0:01:41.1]} 19. N1h2 {[%clk 0:02:30.3]} 19... Rg6
{[%clk 0:01:20.1]} 20. Kh1 {[%clk 0:02:17.3]} 20... d5 {[%clk 0:01:03.2]} 21.
exd5 {[%clk 0:02:10.9]} 21... exd5 {[%clk 0:01:03.1]} 22. Nxe5 {[%clk
0:02:06.8]} 22... Nxe5 {[%clk 0:01:01.6]} 23. Qxh5 {[%clk 0:02:05.6]} 23... Nd7
{[%clk 0:00:47.3]} 24. Rae2 {[%clk 0:01:58.6]} 24... Nf6 {[%clk 0:00:35.8]} 25.
Qe5 {[%clk 0:01:54.4]} 25... Re8 {[%clk 0:00:33.3]} 26. Qd4 {[%clk 0:01:40.8]}
26... Rxe3 {[%clk 0:00:32.8]} 27. Qxe3 {[%clk 0:01:39]} 27... Nh7 {[%clk
0:00:19.1]} 28. Qe8+ {[%clk 0:01:36.4]} 28... Nf8 {[%clk 0:00:19.4]} 29. Qxf7+
{[%clk 0:01:35.2]} 29... Kxf7 {[%clk 0:00:20.3]} 30. Nf3 {[%clk 0:01:35.8]}
30... Nd7 {[%clk 0:00:18.9]} 31. Ne5+ {[%clk 0:01:34.2]} 31... Nxe5 {[%clk
0:00:18.4]} 32. Rxe5 {[%clk 0:01:35.1]} 32... Rc6 {[%clk 0:00:19]} 33. Rxd5
{[%clk 0:01:34]} 33... Rxc3 {[%clk 0:00:19.8]} 34. Rc5 {[%clk 0:01:21.2]} 34...
Rxc5 {[%clk 0:00:18.6]} 35. bxc5 {[%clk 0:01:22.1]} 35... Ke6 {[%clk 0:00:19]}
36. f4 {[%clk 0:01:21.4]} 36... Kd5 {[%clk 0:00:19.5]} 37. g4 {[%clk 0:01:21.9]}
37... Kxc5 {[%clk 0:00:20]} 38. g5 {[%clk 0:01:22.6]} 38... hxg5 {[%clk
0:00:19.7]} 39. fxg5 {[%clk 0:01:23.5]} 39... b5 {[%clk 0:00:15.4]} 40. axb5
{[%clk 0:01:20.8]} 40... axb5 {[%clk 0:00:16.3]} 41. h4 {[%clk 0:01:21.5]} 41...
Kd5 {[%clk 0:00:16.3]} 0-1